[Event "Late-Titled-Tuesday-Blitz-April-23-2024"]
[Site "Chess.com"]
[Date "2024.04.23"]
[Round "7"]
[White "Byniolus"]
[Black "reevecanada"]
[Result "1-0"]
[WhiteElo "2810"]
[BlackElo "2621"]
[TimeControl "180+1"]
[EndTime "15:21:25 PDT"]
[Termination "Byniolus won by checkmate"]

1. d4 {[%clk 0:03:00.9]} 1... Nf6 {[%clk 0:02:57.3]} 2. Nf3 {[%clk 0:03:01.1]}
2... b6 {[%clk 0:02:56.8]} 3. Bf4 {[%clk 0:03:01.1]} 3... Bb7 {[%clk 0:02:57.3]}
4. e3 {[%clk 0:03:01.7]} 4... d6 {[%clk 0:02:57.6]} 5. h3 {[%clk 0:03:02]} 5...
Nbd7 {[%clk 0:02:58.1]} 6. Be2 {[%clk 0:03:02.5]} 6... g6 {[%clk 0:02:58.6]} 7.
a4 {[%clk 0:03:01.5]} 7... a6 {[%clk 0:02:57.8]} 8. O-O {[%clk 0:03:01.8]} 8...
Bg7 {[%clk 0:02:58.5]} 9. Nbd2 {[%clk 0:03:02]} 9... O-O {[%clk 0:02:59.2]} 10.
Bh2 {[%clk 0:03:02.4]} 10... Re8 {[%clk 0:02:59.9]} 11. c3 {[%clk 0:03:03]}
11... c5 {[%clk 0:03:00.5]} 12. Qb3 {[%clk 0:02:59.2]} 12... Rc8 {[%clk
0:02:57.9]} 13. Bc4 {[%clk 0:02:54.6]} 13... d5 {[%clk 0:02:43.2]} 14. Be2
{[%clk 0:02:54.2]} 14... e6 {[%clk 0:02:32.7]} 15. Rfd1 {[%clk 0:02:49.8]} 15...
Bf8 {[%clk 0:02:29.1]} 16. c4 {[%clk 0:02:41.5]} 16... cxd4 {[%clk 0:02:25.1]}
17. exd4 {[%clk 0:02:27.1]} 17... dxc4 {[%clk 0:02:19.5]} 18. Nxc4 {[%clk
0:02:20.6]} 18... Bd5 {[%clk 0:02:18.4]} 19. Rac1 {[%clk 0:02:20.9]} 19... Ne4
{[%clk 0:02:15.9]} 20. Qd3 {[%clk 0:02:09.8]} 20... Ndf6 {[%clk 0:02:05.2]} 21.
Ne3 {[%clk 0:01:59.5]} 21... Bb7 {[%clk 0:02:01.4]} 22. Ne5 {[%clk 0:01:52.8]}
22... Nd6 {[%clk 0:01:56.3]} 23. Bf3 {[%clk 0:01:44.6]} 23... Qe7 {[%clk
0:01:45.6]} 24. Nxg6 {[%clk 0:01:33.1]} 24... hxg6 {[%clk 0:01:21.8]} 25. Bxd6
{[%clk 0:01:32.7]} 25... Qxd6 {[%clk 0:01:20.1]} 26. Bxb7 {[%clk 0:01:32.8]}
26... Rxc1 {[%clk 0:01:20]} 27. Rxc1 {[%clk 0:01:33.7]} 27... e5 {[%clk
0:01:12]} 28. d5 {[%clk 0:01:23.8]} 28... a5 {[%clk 0:01:02.4]} 29. Rc6 {[%clk
0:01:18.1]} 29... Qd8 {[%clk 0:00:57.1]} 30. d6 {[%clk 0:00:47.1]} 30... Re6
{[%clk 0:00:49]} 31. Nc4 {[%clk 0:00:43]} 31... Nd7 {[%clk 0:00:42.8]} 32. Rc8
{[%clk 0:00:35.8]} 32... Qg5 {[%clk 0:00:42]} 33. Bd5 {[%clk 0:00:32.3]} 33...
Rf6 {[%clk 0:00:32.7]} 34. Qe3 {[%clk 0:00:28.1]} 34... Qf5 {[%clk 0:00:29.6]}
35. Be4 {[%clk 0:00:10.7]} 35... Qe6 {[%clk 0:00:27.2]} 36. Qh6 {[%clk
0:00:05.5]} 36... Qxc4 {[%clk 0:00:26.3]} 37. Qxf8+ {[%clk 0:00:05]} 37... Nxf8
{[%clk 0:00:26.8]} 38. Rxc4 {[%clk 0:00:05.7]} 38... Rxd6 {[%clk 0:00:27.3]} 39.
Rc7 {[%clk 0:00:03.3]} 39... Nd7 {[%clk 0:00:25.5]} 40. b3 {[%clk 0:00:02.8]}
40... Nc5 {[%clk 0:00:26]} 41. Bf3 {[%clk 0:00:02.8]} 41... Nxb3 {[%clk
0:00:25.5]} 42. g4 {[%clk 0:00:02.4]} 42... Nc5 {[%clk 0:00:25.7]} 43. Bc6
{[%clk 0:00:01.8]} 43... e4 {[%clk 0:00:24.2]} 44. Bb5 {[%clk 0:00:02]} 44...
Rd1+ {[%clk 0:00:23.5]} 45. Kg2 {[%clk 0:00:02.4]} 45... Ne6 {[%clk 0:00:23.4]}
46. Rc6 {[%clk 0:00:02.3]} 46... Nf4+ {[%clk 0:00:22.5]} 47. Kh2 {[%clk
0:00:01.8]} 47... g5 {[%clk 0:00:20.6]} 48. Rxb6 {[%clk 0:00:02.2]} 48... Rd2
{[%clk 0:00:20.2]} 49. Kg3 {[%clk 0:00:02]} 49... Rb2 {[%clk 0:00:20.1]} 50.
Rb8+ {[%clk 0:00:01.6]} 50... Kg7 {[%clk 0:00:19.4]} 51. Ra8 {[%clk 0:00:01.5]}
51... Rb3+ {[%clk 0:00:19.7]} 52. Kh2 {[%clk 0:00:02.4]} 52... Rxh3+ {[%clk
0:00:19.5]} 53. Kg1 {[%clk 0:00:03.2]} 53... Rh4 {[%clk 0:00:19.8]} 54. Rxa5
{[%clk 0:00:03.8]} 54... Rxg4+ {[%clk 0:00:20.4]} 55. Kf1 {[%clk 0:00:04.5]}
55... Nh3 {[%clk 0:00:20.6]} 56. Ke2 {[%clk 0:00:03.7]} 56... Rf4 {[%clk
0:00:20.5]} 57. Ra7 {[%clk 0:00:03.1]} 57... Nxf2 {[%clk 0:00:20.8]} 58. Ke3
{[%clk 0:00:04]} 58... Ng4+ {[%clk 0:00:20.8]} 59. Kd4 {[%clk 0:00:03.6]} 59...
e3+ {[%clk 0:00:21.4]} 60. Kd3 {[%clk 0:00:04]} 60... Rf2 {[%clk 0:00:22]} 61.
a5 {[%clk 0:00:03]} 61... Rd2+ {[%clk 0:00:20.9]} 62. Kc3 {[%clk 0:00:02.8]}
62... Rd5 {[%clk 0:00:20.9]} 63. Bc4 {[%clk 0:00:02.4]} 63... Rf5 {[%clk
0:00:20.1]} 64. a6 {[%clk 0:00:03]} 64... Ne5 {[%clk 0:00:20.3]} 65. Bb5 {[%clk
0:00:01.6]} 65... Nf3 {[%clk 0:00:17.9]} 66. Rb7 {[%clk 0:00:01.3]} 66... g4
{[%clk 0:00:13.8]} 67. a7 {[%clk 0:00:01.7]} 67... Rxb5 {[%clk 0:00:12]} 68.
Rxb5 {[%clk 0:00:02.6]} 68... e2 {[%clk 0:00:12.4]} 69. Rb1 {[%clk 0:00:02.5]}
69... e1=Q+ {[%clk 0:00:09.4]} 70. Rxe1 {[%clk 0:00:02.4]} 70... Nxe1 {[%clk
0:00:10.3]} 71. a8=Q {[%clk 0:00:03]} 71... Nf3 {[%clk 0:00:11.2]} 72. Qe4
{[%clk 0:00:03.1]} 72... Ng5 {[%clk 0:00:08.9]} 73. Qxg4 {[%clk 0:00:03.3]}
73... Kg6 {[%clk 0:00:09.8]} 74. Qg2 {[%clk 0:00:02.9]} 74... f6 {[%clk
0:00:09.8]} 75. Kd4 {[%clk 0:00:03.1]} 75... Kf5 {[%clk 0:00:10]} 76. Ke3 {[%clk
0:00:03.5]} 76... Ke5 {[%clk 0:00:10.2]} 77. Qc2 {[%clk 0:00:03.9]} 77... Ke6
{[%clk 0:00:10.3]} 78. Qc6+ {[%clk 0:00:03.7]} 78... Ke5 {[%clk 0:00:10.7]} 79.
Qc5+ {[%clk 0:00:03.3]} 79... Ke6 {[%clk 0:00:11.2]} 80. Kf4 {[%clk 0:00:03.5]}
80... Nh3+ {[%clk 0:00:11.1]} 81. Kg4 {[%clk 0:00:03.1]} 81... Ng5 {[%clk
0:00:11.6]} 82. Qb5 {[%clk 0:00:02.6]} 82... Nf7 {[%clk 0:00:10.1]} 83. Qb6+
{[%clk 0:00:02.3]} 83... Ke7 {[%clk 0:00:10.2]} 84. Kf5 {[%clk 0:00:02.3]} 84...
Nd6+ {[%clk 0:00:10.7]} 85. Kg6 {[%clk 0:00:03]} 85... Ke6 {[%clk 0:00:11.3]}
86. Qb3+ {[%clk 0:00:02.6]} 86... Ke5 {[%clk 0:00:10.2]} 87. Qf3 {[%clk
0:00:02.3]} 87... Ne4 {[%clk 0:00:09.7]} 88. Qf5+ {[%clk 0:00:02.2]} 88... Kd4
{[%clk 0:00:10.3]} 89. Qf4 {[%clk 0:00:01.6]} 89... Kd3 {[%clk 0:00:10.2]} 90.
Kf5 {[%clk 0:00:02.4]} 90... Nc3 {[%clk 0:00:07.2]} 91. Qg3+ {[%clk 0:00:02]}
91... Kc4 {[%clk 0:00:06.1]} 92. Qh4+ {[%clk 0:00:02.1]} 92... Kd3 {[%clk
0:00:05.8]} 93. Qxf6 {[%clk 0:00:01.6]} 93... Nd5 {[%clk 0:00:04.7]} 94. Qh4
{[%clk 0:00:01.8]} 94... Ne3+ {[%clk 0:00:04]} 95. Kg5 {[%clk 0:00:02.4]} 95...
Nc4 {[%clk 0:00:03.8]} 96. Qh3+ {[%clk 0:00:03.3]} 96... Ne3 {[%clk 0:00:04.2]}
97. Kf4 {[%clk 0:00:03.6]} 97... Kc2 {[%clk 0:00:05.1]} 98. Qxe3 {[%clk
0:00:03.9]} 98... Kb1 {[%clk 0:00:06]} 99. Qd2 {[%clk 0:00:03.9]} 99... Ka1
{[%clk 0:00:06.9]} 100. Ke3 {[%clk 0:00:04.6]} 100... Kb1 {[%clk 0:00:07.8]}
101. Kd3 {[%clk 0:00:05.5]} 101... Ka1 {[%clk 0:00:08.3]} 102. Kc3 {[%clk
0:00:06.4]} 102... Kb1 {[%clk 0:00:08.9]} 103. Qb2# {[%clk 0:00:07.3]} 1-0

[Event "Late-Titled-Tuesday-Blitz-April-23-2024"]
[Site "Chess.com"]
[Date "2024.04.23"]
[Round "7"]
[White "Oleg_Papayan"]
[Black "giomar27"]
[Result "1/2-1/2"]
[WhiteElo "2640"]
[BlackElo "2506"]
[TimeControl "180+1"]
[EndTime "15:21:33 PDT"]
[Termination "Game drawn by repetition"]

1. e4 {[%clk 0:02:52.3]} 1... e5 {[%clk 0:02:59.2]} 2. Nf3 {[%clk 0:02:50.8]}
2... Nc6 {[%clk 0:02:59.6]} 3. Bb5 {[%clk 0:02:51.3]} 3... a6 {[%clk 0:02:59.4]}
4. Bxc6 {[%clk 0:02:51.8]} 4... dxc6 {[%clk 0:02:59.4]} 5. Nc3 {[%clk
0:02:52.7]} 5... f6 {[%clk 0:02:53.3]} 6. d4 {[%clk 0:02:50]} 6... exd4 {[%clk
0:02:51.3]} 7. Qxd4 {[%clk 0:02:50.9]} 7... Qxd4 {[%clk 0:02:49.7]} 8. Nxd4
{[%clk 0:02:51.8]} 8... Bd7 {[%clk 0:02:46.9]} 9. Be3 {[%clk 0:02:51.4]} 9...
O-O-O {[%clk 0:02:45.4]} 10. O-O-O {[%clk 0:02:51.5]} 10... c5 {[%clk
0:02:45.8]} 11. Nde2 {[%clk 0:02:51.3]} 11... b6 {[%clk 0:02:42.4]} 12. Nd5
{[%clk 0:02:49.6]} 12... Ne7 {[%clk 0:02:37.4]} 13. Nec3 {[%clk 0:02:46.7]}
13... Bc6 {[%clk 0:02:36.3]} 14. Bf4 {[%clk 0:02:40.5]} 14... Nxd5 {[%clk
0:02:30.3]} 15. Nxd5 {[%clk 0:02:39.4]} 15... Bd6 {[%clk 0:02:27]} 16. Bxd6
{[%clk 0:02:35.5]} 16... Bxd5 {[%clk 0:02:18]} 17. Bxc7 {[%clk 0:02:33.9]} 17...
Kxc7 {[%clk 0:02:18]} 18. exd5 {[%clk 0:02:34.3]} 18... Rhe8 {[%clk 0:02:17.3]}
19. c4 {[%clk 0:02:34.6]} 19... Re2 {[%clk 0:02:17]} 20. Rd2 {[%clk 0:02:33]}
20... Re4 {[%clk 0:02:17.2]} 21. Rc2 {[%clk 0:02:28.9]} 21... Rde8 {[%clk
0:02:13.3]} 22. Rd1 {[%clk 0:02:27.9]} 22... Kd6 {[%clk 0:02:13.4]} 23. b3
{[%clk 0:02:27]} 23... b5 {[%clk 0:02:13.8]} 24. Rdd2 {[%clk 0:02:19.2]} 24...
Re1+ {[%clk 0:02:12]} 25. Rd1 {[%clk 0:02:15.5]} 25... R1e4 {[%clk 0:02:09.9]}
26. Kb2 {[%clk 0:02:12.4]} 26... R8e5 {[%clk 0:02:08.3]} 27. Rd3 {[%clk
0:02:05.4]} 27... Re1 {[%clk 0:02:05.2]} 28. Rg3 {[%clk 0:02:00.6]} 28... g6
{[%clk 0:02:02.3]} 29. Rf3 {[%clk 0:01:59.1]} 29... f5 {[%clk 0:01:56.7]} 30.
Rd3 {[%clk 0:01:57.3]} 30... Rg1 {[%clk 0:01:50.4]} 31. g3 {[%clk 0:01:54.8]}
31... Ree1 {[%clk 0:01:50.4]} 32. cxb5 {[%clk 0:01:37.6]} 32... axb5 {[%clk
0:01:49.6]} 33. Kc3 {[%clk 0:01:38.3]} 33... Re4 {[%clk 0:01:16]} 34. a3 {[%clk
0:01:16.2]} 34... b4+ {[%clk 0:01:14.5]} 35. axb4 {[%clk 0:01:16.3]} 35... Rxb4
{[%clk 0:01:09.9]} 36. Re2 {[%clk 0:01:13.2]} 36... Re4 {[%clk 0:00:55.1]} 37.
Ra2 {[%clk 0:01:10.1]} 37... Rc1+ {[%clk 0:00:50.4]} 38. Kd2 {[%clk 0:01:06.6]}
38... Rh1 {[%clk 0:00:50.4]} 39. Ra6+ {[%clk 0:01:05.6]} 39... Kd7 {[%clk
0:00:50.6]} 40. Ra7+ {[%clk 0:01:00.8]} 40... Kd6 {[%clk 0:00:50.3]} 41. Ra6+
{[%clk 0:01:01.1]} 41... Kd7 {[%clk 0:00:50.4]} 42. d6 {[%clk 0:01:02]} 42...
Rd4 {[%clk 0:00:41]} 43. h4 {[%clk 0:00:50.1]} 43... Rd1+ {[%clk 0:00:32.4]} 44.
Kxd1 {[%clk 0:00:50.3]} 44... Rxd3+ {[%clk 0:00:32.9]} 45. Kc2 {[%clk
0:00:46.7]} 45... Rf3 {[%clk 0:00:31]} 46. Ra7+ {[%clk 0:00:34.7]} 46... Kxd6
{[%clk 0:00:30.9]} 47. Rxh7 {[%clk 0:00:35.6]} 47... Rxf2+ {[%clk 0:00:30.1]}
48. Kc1 {[%clk 0:00:34.1]} 48... Rf3 {[%clk 0:00:25.5]} 49. Rh6 {[%clk
0:00:34.1]} 49... Rxg3 {[%clk 0:00:22.1]} 50. h5 {[%clk 0:00:34.6]} 50... Ke6
{[%clk 0:00:20.1]} 51. hxg6 {[%clk 0:00:31.9]} 51... Kf6 {[%clk 0:00:19.5]} 52.
Kc2 {[%clk 0:00:14.9]} 52... Rxg6 {[%clk 0:00:16.1]} 53. Rh8 {[%clk 0:00:13.7]}
53... Ke5 {[%clk 0:00:08]} 54. Kd3 {[%clk 0:00:11.4]} 54... Kd5 {[%clk
0:00:06.7]} 55. Rd8+ {[%clk 0:00:10.9]} 55... Kc6 {[%clk 0:00:06.2]} 56. Rf8
{[%clk 0:00:11.6]} 56... Kb5 {[%clk 0:00:04.7]} 57. Rxf5 {[%clk 0:00:10]} 57...
Kb4 {[%clk 0:00:02.7]} 58. Kc2 {[%clk 0:00:06.3]} 58... Rg2+ {[%clk 0:00:02.9]}
59. Kc1 {[%clk 0:00:06.8]} 59... Rg3 {[%clk 0:00:03.2]} 60. Kc2 {[%clk
0:00:02.7]} 60... Rc3+ {[%clk 0:00:03.3]} 61. Kb2 {[%clk 0:00:02.3]} 61... Re3
{[%clk 0:00:03.4]} 62. Kc2 {[%clk 0:00:03.2]} 62... Re2+ {[%clk 0:00:03.9]} 63.
Kc1 {[%clk 0:00:02.5]} 63... Rh2 {[%clk 0:00:04.1]} 64. Rf3 {[%clk 0:00:02.6]}
64... Rh6 {[%clk 0:00:03.1]} 65. Kc2 {[%clk 0:00:01.7]} 65... Ra6 {[%clk
0:00:03.6]} 66. Rf4+ {[%clk 0:00:01.9]} 66... Kb5 {[%clk 0:00:03.9]} 67. Rc4
{[%clk 0:00:02.8]} 67... Ra2+ {[%clk 0:00:04]} 68. Kc3 {[%clk 0:00:03.7]} 68...
Rh2 {[%clk 0:00:04.4]} 69. Rf4 {[%clk 0:00:04.2]} 69... Rh3+ {[%clk 0:00:04.8]}
70. Kc2 {[%clk 0:00:04.9]} 70... Rg3 {[%clk 0:00:05.3]} 71. Rh4 {[%clk
0:00:04.9]} 71... Rf3 {[%clk 0:00:05.6]} 72. Rg4 {[%clk 0:00:05.3]} 72... Rh3
{[%clk 0:00:05.9]} 73. Kb2 {[%clk 0:00:05.6]} 73... Rh2+ {[%clk 0:00:06.4]} 74.
Ka3 {[%clk 0:00:06.2]} 74... Rh1 {[%clk 0:00:06.8]} 75. Rg8 {[%clk 0:00:05.7]}
75... Ra1+ {[%clk 0:00:06.2]} 76. Kb2 {[%clk 0:00:05.7]} 76... Rh1 {[%clk
0:00:07.1]} 77. Rb8+ {[%clk 0:00:05.9]} 77... Kc6 {[%clk 0:00:06.9]} 78. Kc3
{[%clk 0:00:05.6]} 78... Rh3+ {[%clk 0:00:07.1]} 79. Kc2 {[%clk 0:00:05.7]}
79... Rh2+ {[%clk 0:00:07.5]} 80. Kd3 {[%clk 0:00:06.2]} 80... Rh3+ {[%clk
0:00:08]} 81. Kd2 {[%clk 0:00:06.8]} 81... Rh2+ {[%clk 0:00:08.5]} 82. Kc3
{[%clk 0:00:06.8]} 82... Rh3+ {[%clk 0:00:09]} 83. Kb2 {[%clk 0:00:07.5]} 83...
Rh2+ {[%clk 0:00:09.5]} 84. Ka3 {[%clk 0:00:08.2]} 84... Rh1 {[%clk 0:00:09.5]}
85. Rg8 {[%clk 0:00:07.9]} 85... Kb5 {[%clk 0:00:09.4]} 86. Rg5 {[%clk
0:00:07.2]} 86... Rh2 {[%clk 0:00:09.1]} 87. Rf5 {[%clk 0:00:06.7]} 87... Rh3
{[%clk 0:00:09.3]} 88. Rf4 {[%clk 0:00:06.1]} 88... Rc3 {[%clk 0:00:07.9]} 89.
Kb2 {[%clk 0:00:05]} 89... Rh3 {[%clk 0:00:08]} 90. Rg4 {[%clk 0:00:05.6]} 90...
Rh2+ {[%clk 0:00:08]} 91. Kc3 {[%clk 0:00:05.7]} 91... Rh3+ {[%clk 0:00:08.4]}
92. Kc2 {[%clk 0:00:06.3]} 92... Rh2+ {[%clk 0:00:08.8]} 93. Kb1 {[%clk
0:00:06.5]} 93... Rf2 {[%clk 0:00:08.5]} 94. Re4 {[%clk 0:00:06.2]} 94... Rh2
{[%clk 0:00:08.6]} 95. Rf4 {[%clk 0:00:06]} 95... Rg2 {[%clk 0:00:08.8]} 96. Rh4
{[%clk 0:00:06.5]} 96... Rf2 {[%clk 0:00:09]} 97. Rg4 {[%clk 0:00:06.5]} 97...
Re2 {[%clk 0:00:09.2]} 98. Rf4 {[%clk 0:00:06.7]} 98... Rh2 {[%clk 0:00:09.4]}
99. Rg4 {[%clk 0:00:05.4]} 99... Rf2 {[%clk 0:00:09.6]} 100. Rh4 {[%clk
0:00:05.1]} 100... Rg2 {[%clk 0:00:09.9]} 101. Rf4 {[%clk 0:00:05.3]} 101... Rh2
{[%clk 0:00:10.3]} 102. Rg4 {[%clk 0:00:05.7]} 1/2-1/2

[Event "Late-Titled-Tuesday-Blitz-April-23-2024"]
[Site "Chess.com"]
[Date "2024.04.23"]
[Round "8"]
[White "albayo"]
[Black "NM_Koval"]
[Result "0-1"]
[WhiteElo "2540"]
[BlackElo "2173"]
[TimeControl "180+1"]
[EndTime "15:25:40 PDT"]
[Termination "NM_Koval won by checkmate"]

1. e4 {[%clk 0:02:59.2]} 1... c5 {[%clk 0:02:59.8]} 2. Nf3 {[%clk 0:02:59.1]}
2... d6 {[%clk 0:02:59.8]} 3. d4 {[%clk 0:02:59]} 3... cxd4 {[%clk 0:03:00.7]}
4. Nxd4 {[%clk 0:02:59.4]} 4... Nf6 {[%clk 0:03:01.2]} 5. Nc3 {[%clk 0:02:59.7]}
5... g6 {[%clk 0:03:01.7]} 6. Be3 {[%clk 0:02:59.3]} 6... Bg7 {[%clk 0:03:02]}
7. f3 {[%clk 0:02:59.9]} 7... O-O {[%clk 0:03:02.3]} 8. Qd2 {[%clk 0:03:00.2]}
8... Nc6 {[%clk 0:03:02.7]} 9. g4 {[%clk 0:03:00.7]} 9... Nxd4 {[%clk
0:02:59.1]} 10. Bxd4 {[%clk 0:03:00.9]} 10... Be6 {[%clk 0:02:59.5]} 11. h4
{[%clk 0:03:00.8]} 11... Qa5 {[%clk 0:02:53.3]} 12. h5 {[%clk 0:03:00.8]} 12...
Rac8 {[%clk 0:02:49.5]} 13. hxg6 {[%clk 0:02:58.5]} 13... fxg6 {[%clk
0:02:48.1]} 14. Qh2 {[%clk 0:02:56.2]} 14... Rf7 {[%clk 0:02:41.7]} 15. Bd3
{[%clk 0:02:45.3]} 15... Qb4 {[%clk 0:02:39.8]} 16. g5 {[%clk 0:02:04.4]} 16...
Qxd4 {[%clk 0:02:32]} 17. gxf6 {[%clk 0:02:02.4]} 17... Bxf6 {[%clk 0:02:32]}
18. f4 {[%clk 0:01:56]} 18... Qe3+ {[%clk 0:02:23.1]} 19. Kd1 {[%clk 0:01:44.3]}
19... Rxc3 {[%clk 0:02:11.6]} 20. bxc3 {[%clk 0:01:42.5]} 20... Bxc3 {[%clk
0:02:11.2]} 21. Rb1 {[%clk 0:01:39.5]} 21... Bg4+ {[%clk 0:02:10.5]} 22. Be2
{[%clk 0:01:34.2]} 22... Qd2# {[%clk 0:02:09.5]} 0-1

[Event "Late-Titled-Tuesday-Blitz-April-23-2024"]
[Site "Chess.com"]
[Date "2024.04.23"]
[Round "8"]
[White "Szachulec75"]
[Black "crosky"]
[Result "0-1"]
[WhiteElo "2085"]
[BlackElo "2348"]
[TimeControl "180+1"]
[EndTime "15:26:13 PDT"]
[Termination "crosky won by checkmate"]

1. Nf3 {[%clk 0:03:00.9]} 1... Nf6 {[%clk 0:02:59.8]} 2. g3 {[%clk 0:02:58.8]}
2... b5 {[%clk 0:03:00]} 3. Bg2 {[%clk 0:02:59.1]} 3... Bb7 {[%clk 0:03:00.7]}
4. d3 {[%clk 0:02:59.6]} 4... c5 {[%clk 0:03:01.1]} 5. O-O {[%clk 0:03:00.3]}
5... e6 {[%clk 0:03:01.6]} 6. e4 {[%clk 0:03:00.6]} 6... d6 {[%clk 0:03:01.6]}
7. a4 {[%clk 0:02:58.5]} 7... b4 {[%clk 0:03:01.5]} 8. Nbd2 {[%clk 0:02:58.7]}
8... Be7 {[%clk 0:03:01.5]} 9. b3 {[%clk 0:02:57.3]} 9... Nbd7 {[%clk
0:03:00.8]} 10. Bb2 {[%clk 0:02:57.9]} 10... O-O {[%clk 0:03:01.2]} 11. Re1
{[%clk 0:02:57.4]} 11... Qc7 {[%clk 0:03:00.4]} 12. h3 {[%clk 0:02:57.6]} 12...
Rfe8 {[%clk 0:02:58.9]} 13. e5 {[%clk 0:02:56.1]} 13... Nd5 {[%clk 0:02:51.3]}
14. Nc4 {[%clk 0:02:52.6]} 14... dxe5 {[%clk 0:02:46.2]} 15. Nfxe5 {[%clk
0:02:49.6]} 15... Bf6 {[%clk 0:02:30.6]} 16. Nxd7 {[%clk 0:02:48.2]} 16... Bxb2
{[%clk 0:02:24.8]} 17. Nxb2 {[%clk 0:02:46.9]} 17... Qxd7 {[%clk 0:02:24.6]} 18.
Nc4 {[%clk 0:02:41]} 18... Nc3 {[%clk 0:02:23.2]} 19. Qh5 {[%clk 0:02:36.8]}
19... Bxg2 {[%clk 0:02:20.4]} 20. Kxg2 {[%clk 0:02:36.2]} 20... Qd5+ {[%clk
0:02:19.8]} 21. Qf3 {[%clk 0:02:36.5]} 21... Qd4 {[%clk 0:01:54.4]} 22. Rac1
{[%clk 0:02:18.7]} 22... Rad8 {[%clk 0:01:53.4]} 23. h4 {[%clk 0:02:03.7]} 23...
Rd5 {[%clk 0:01:46.7]} 24. h5 {[%clk 0:01:45.7]} 24... Rf5 {[%clk 0:01:46.4]}
25. Qc6 {[%clk 0:01:39.2]} 25... Qxf2+ {[%clk 0:01:37.4]} 26. Kh3 {[%clk
0:01:39.6]} 26... Rxh5+ {[%clk 0:01:36.8]} 27. Kg4 {[%clk 0:01:38.9]} 27... Qf5#
{[%clk 0:01:37.4]} 0-1

[Event "Late-Titled-Tuesday-Blitz-April-23-2024"]
[Site "Chess.com"]
[Date "2024.04.23"]
[Round "8"]
[White "scandalgod"]
[Black "Ajedrez_con_German"]
[Result "0-1"]
[WhiteElo "2524"]
[BlackElo "2650"]
[TimeControl "180+1"]
[EndTime "15:26:36 PDT"]
[Termination "Ajedrez_con_German won by checkmate"]

1. d4 {[%clk 0:02:52.1]} 1... a6 {[%clk 0:02:59.9]} 2. e4 {[%clk 0:02:49.4]}
2... e6 {[%clk 0:02:59.9]} 3. Bd3 {[%clk 0:02:48.2]} 3... d5 {[%clk 0:02:57.5]}
4. exd5 {[%clk 0:02:39.9]} 4... exd5 {[%clk 0:02:57.1]} 5. h3 {[%clk 0:02:40.1]}
5... c5 {[%clk 0:02:57.1]} 6. dxc5 {[%clk 0:02:39]} 6... Bxc5 {[%clk 0:02:56.8]}
7. Nf3 {[%clk 0:02:39.2]} 7... Nf6 {[%clk 0:02:56.7]} 8. O-O {[%clk 0:02:39.3]}
8... O-O {[%clk 0:02:56.7]} 9. Bg5 {[%clk 0:02:39]} 9... h6 {[%clk 0:02:56.3]}
10. Bh4 {[%clk 0:02:39.3]} 10... Qd6 {[%clk 0:02:53.9]} 11. Nbd2 {[%clk
0:02:36.9]} 11... Nc6 {[%clk 0:02:52.6]} 12. Bg3 {[%clk 0:02:30.6]} 12... Qxg3
{[%clk 0:02:47.1]} 13. Ne1 {[%clk 0:00:52.2]} 13... Bxh3 {[%clk 0:02:17.5]} 14.
Be2 {[%clk 0:00:37.8]} 14... Ng4 {[%clk 0:01:55.3]} 15. Nb3 {[%clk 0:00:36.4]}
15... Qh2# {[%clk 0:01:52.7]} 0-1

[Event "Late-Titled-Tuesday-Blitz-April-23-2024"]
[Site "Chess.com"]
[Date "2024.04.23"]
[Round "8"]
[White "zverr1"]
[Black "ChessSwole"]
[Result "1-0"]
[WhiteElo "2461"]
[BlackElo "2673"]
[TimeControl "180+1"]
[EndTime "15:26:54 PDT"]
[Termination "zverr1 won by resignation"]

1. e4 {[%clk 0:03:00.9]} 1... d5 {[%clk 0:03:00.2]} 2. exd5 {[%clk 0:02:38.4]}
2... Qxd5 {[%clk 0:03:01.1]} 3. Nc3 {[%clk 0:02:38.2]} 3... Qd6 {[%clk
0:03:01.3]} 4. d4 {[%clk 0:02:37.9]} 4... Nf6 {[%clk 0:03:01.5]} 5. Nb5 {[%clk
0:02:36.1]} 5... Qb6 {[%clk 0:03:01.1]} 6. c4 {[%clk 0:02:29.9]} 6... c6 {[%clk
0:03:00.6]} 7. c5 {[%clk 0:02:23.5]} 7... Qd8 {[%clk 0:02:53.7]} 8. Nc3 {[%clk
0:02:21.8]} 8... e5 {[%clk 0:02:51.5]} 9. Be3 {[%clk 0:02:11.8]} 9... Ng4 {[%clk
0:02:41.9]} 10. Bc4 {[%clk 0:02:06.5]} 10... Nxe3 {[%clk 0:02:40.9]} 11. fxe3
{[%clk 0:02:07.4]} 11... Qg5 {[%clk 0:02:39.9]} 12. Qf3 {[%clk 0:02:02.2]} 12...
Qg6 {[%clk 0:02:20.1]} 13. O-O-O {[%clk 0:01:52.4]} 13... Bg4 {[%clk 0:02:18.3]}
14. Bxf7+ {[%clk 0:01:49]} 14... Qxf7 {[%clk 0:02:04.1]} 15. Qxg4 {[%clk
0:01:36.7]} 15... Nd7 {[%clk 0:02:04.7]} 16. Nf3 {[%clk 0:01:32]} 16... O-O-O
{[%clk 0:01:57.5]} 17. Nxe5 {[%clk 0:01:29.3]} 17... Qe8 {[%clk 0:01:56.9]} 18.
Rhf1 {[%clk 0:01:21.4]} 18... Kb8 {[%clk 0:01:50.3]} 19. Nf7 {[%clk 0:01:17.5]}
19... Be7 {[%clk 0:01:40.4]} 20. Nxh8 {[%clk 0:01:15.4]} 20... Qxh8 {[%clk
0:01:41.3]} 21. Rf7 {[%clk 0:01:07.7]} 21... Qe8 {[%clk 0:01:36.6]} 22. Qe6
{[%clk 0:01:05.9]} 1-0

[Event "Late-Titled-Tuesday-Blitz-April-23-2024"]
[Site "Chess.com"]
[Date "2024.04.23"]
[Round "8"]
[White "SpeedofLight0"]
[Black "amanmuhammethommadov"]
[Result "1-0"]
[WhiteElo "3050"]
[BlackElo "2742"]
[TimeControl "180+1"]
[EndTime "15:27:03 PDT"]
[Termination "SpeedofLight0 won by resignation"]

1. d4 {[%clk 0:03:00.9]} 1... Nf6 {[%clk 0:02:59.4]} 2. Nc3 {[%clk 0:03:00.9]}
2... d5 {[%clk 0:02:59.4]} 3. Bf4 {[%clk 0:03:01.6]} 3... g6 {[%clk 0:02:58.7]}
4. Qd2 {[%clk 0:03:01.5]} 4... Bg7 {[%clk 0:02:58.5]} 5. O-O-O {[%clk
0:03:02.2]} 5... O-O {[%clk 0:02:58.3]} 6. Bh6 {[%clk 0:03:02.7]} 6... Bxh6
{[%clk 0:02:58.5]} 7. Qxh6 {[%clk 0:03:03.2]} 7... Ng4 {[%clk 0:02:58.5]} 8. Qf4
{[%clk 0:03:00.4]} 8... c5 {[%clk 0:02:52.7]} 9. dxc5 {[%clk 0:02:57]} 9... e5
{[%clk 0:02:53]} 10. Qg3 {[%clk 0:02:57.1]} 10... d4 {[%clk 0:02:48.5]} 11. h3
{[%clk 0:02:56.4]} 11... Qg5+ {[%clk 0:02:43.2]} 12. Kb1 {[%clk 0:02:45.4]}
12... dxc3 {[%clk 0:02:42]} 13. hxg4 {[%clk 0:02:33]} 13... cxb2 {[%clk
0:02:39.9]} 14. Qh2 {[%clk 0:02:20.4]} 14... h6 {[%clk 0:02:00.8]} 15. Nf3
{[%clk 0:02:18.6]} 15... Qf4 {[%clk 0:01:41.8]} 16. g3 {[%clk 0:02:17.1]} 16...
Qf6 {[%clk 0:01:42]} 17. Qxh6 {[%clk 0:01:58.7]} 17... Qg7 {[%clk 0:01:42.2]}
18. Qe3 {[%clk 0:01:45.9]} 18... Nc6 {[%clk 0:01:39.3]} 19. Ng5 {[%clk 0:01:46]}
19... Bxg4 {[%clk 0:01:05.2]} 20. Rh7 {[%clk 0:01:45.4]} 20... Qxh7 {[%clk
0:00:50.5]} 21. Nxh7 {[%clk 0:01:46.3]} 21... Kxh7 {[%clk 0:00:51.4]} 22. Bg2
{[%clk 0:01:46]} 22... Kg7 {[%clk 0:00:40.2]} 23. Bxc6 {[%clk 0:01:44.6]} 23...
bxc6 {[%clk 0:00:41.1]} 24. f3 {[%clk 0:01:45.3]} 24... Be6 {[%clk 0:00:41]} 25.
Qxe5+ {[%clk 0:01:45.3]} 1-0